fUST/lending_fUST_20251030
["ID","MTS","AMOUNT","RATE_DAILY","PERIOD"]
[392635973,1761766252181,-500.0,0.00033687,120]
[392635974,1761766252190,-500.0,0.00033687,2]
[392635975,1761766252200,-298.23,0.00033687,120]
[392635976,1761766252209,-500.0,0.00033687,2]
[392635977,1761766252219,-501.06628836,0.00033687,120]
[392635978,1761766252228,-500.0,0.00033687,2]
[392635979,1761766252239,-501.5126338,0.00033687,120]
[392635980,1761766252249,-500.0,0.00033687,2]
[392635981,1761766252259,-501.28053572,0.00033687,120]
[392635982,1761766252268,-500.0,0.00033687,2]
[392635983,1761766252277,-450.97,0.00033687,120]
[392635984,1761766252287,-500.0,0.00033687,2]
[392635985,1761766252297,-500.0,0.00033687,120]
[392635986,1761766252307,-500.0,0.00033687,120]
[392635987,1761766252322,-393.45254403,0.00033687,120]
[392635988,1761766252331,-848.2,0.00033687,2]
[392635989,1761766252340,-848.2,0.00033687,120]
[392635990,1761766252351,-848.2,0.00033687,120]
[392635991,1761766252361,-848.2,0.00033687,120]
[392635992,1761766252371,-848.2,0.00033687,120]
[392635993,1761766252380,-848.2,0.00033687,120]
[392635994,1761766252390,-848.2,0.00033687,120]
[392635995,1761766252400,-848.2,0.00033687,120]
[392635996,1761766252410,-848.2,0.00033687,120]
[392635997,1761766252420,-848.2,0.00033687,120]
[392635998,1761766252429,-500.7564789,0.00033687,2]
[392635999,1761766252439,-848.2,0.00033687,120]
[392636000,1761766252449,-848.2,0.00033687,120]
[392636001,1761766252459,-848.2,0.00033687,120]
[392636002,1761766252469,-848.2,0.00033687,120]
[392636003,1761766252478,-500.99314827,0.00033687,2]
[392636004,1761766252491,-848.2,0.00033687,120]
[392636005,1761766252500,-848.2,0.00033687,120]
[392636006,1761766252510,-848.2,0.00033687,120]
[392636007,1761766252519,-848.2,0.00033687,120]
[392636008,1761766252529,-848.2,0.00033687,120]
[392636009,1761766252539,-848.2,0.00033687,120]
[392636010,1761766252549,-848.2,0.00033687,120]
[392636011,1761766252560,-848.2,0.00033687,120]
[392636012,1761766252570,-500.0,0.00033687,2]
[392636013,1761766252579,-848.2,0.00033687,120]
[392636014,1761766252589,-302028.7134692,0.00033687,20]
[392636015,1761766252649,-12328.92375215,0.00033687,20]
[392636016,1761766252661,-5240.146,0.00033687,20]
[392636017,1761766450918,-500.0,0.00020573,2]
[392636018,1761766450951,-500.0,0.00020573,2]
[392636019,1761766450990,-150.0,0.00020639,2]
[392636020,1761766451026,-300.0,0.00020947,2]
[392636021,1761766451060,-760.90676762,0.00020948,2]
[392636022,1761766451097,-300.0,0.00020948,2]
[392636023,1761766451135,-300.0,0.00020948,2]
[392636024,1761766451172,-300.0,0.00020948,2]
[392636025,1761766451209,-300.0,0.00020948,2]
[392636026,1761766451247,-300.0,0.00020948,2]
[392636027,1761766451283,-300.0,0.00020948,2]
[392636028,1761766451321,-300.0,0.00020948,2]
[392636029,1761766451360,-300.0,0.00020948,2]
[392636030,1761766451399,-300.0,0.00020948,2]
[392636031,1761766451619,-300.0,0.00020948,2]
[392636032,1761766451656,-300.0,0.00020948,2]
[392636033,1761766451691,-300.0,0.00020948,2]
[392636034,1761766451726,-300.0,0.00020948,2]
[392636035,1761766451759,-300.0,0.00020948,2]
[392636036,1761766451794,-300.0,0.00020948,2]
[392636037,1761766451825,-1000.0,0.00021121,2]
[392636038,1761766451859,-1500.0,0.00021668,2]
[392636039,1761766452016,-2000.0,0.00022216,2]
[392636040,1761766452053,-150.0,0.00022516,2]
[392636041,1761766452086,-2500.0,0.00022764,2]
[392636042,1761766452220,-3000.0,0.00023312,2]
[392636043,1761766452249,-500.01,0.0002386,2]
[392636044,1761766452304,-2999.99,0.0002386,2]
[392636045,1761766452337,-200.61,0.00024392,2]
[392636046,1761766452668,-4000.0,0.00024408,2]
[392636047,1761766452797,-4500.0,0.00024956,2]
[392636048,1761766452956,-5000.0,0.00025504,2]
[392636049,1761766453150,-939.22252049,0.00026052,2]
[392636050,1761766453182,-267.48,0.00026268,2]
[392636051,1761766453212,-474.10541653,0.00026848,2]
[392636052,1761766453241,-395.61580537,0.00026848,2]
[392636053,1761766453270,-1999.0,0.00027397,2]
[392636054,1761766453298,-412.0,0.00027483,2]
[392636055,1761766453324,-200.0,0.00028028,15]
[392636056,1761766453353,-290.82251522,0.00028145,2]
[392636057,1761766453413,-43.51748478,0.00028145,2]
[392636058,1761766453442,-1999.0,0.00028767,4]
[392636059,1761766453474,-401.21,0.00030021,2]
[392636060,1761766453504,-1999.0,0.00030136,6]
[392636061,1761766453533,-412.0,0.00030483,2]
[392636062,1761766453560,-106.6136373,0.00031,120]
[392636063,1761766453724,-77.32775584,0.00031,120]
[392636064,1761766453751,-161.16383933,0.00031,120]
[392636065,1761766453780,-1548.51455022,0.00031,120]
[392636066,1761766453807,-212.78059964,0.00031,120]
[392636067,1761766453834,-1805.39368466,0.00031,120]
[392636068,1761766453864,-162.85356235,0.00031,120]
[392636069,1761766453898,-223.3749111,0.00031,120]
[392636070,1761766453924,-327.63963972,0.00031,120]
[392636071,1761766453963,-1999.0,0.00031506,8]
[392636072,1761766453993,-600.0,0.00031619,30]
[392636073,1761766454024,-468.08,0.00031897,2]
[392636074,1761766454050,-161.16383933,0.000319,120]
[392636075,1761766454079,-1548.51455022,0.000319,120]
[392636076,1761766454106,-212.78059964,0.000319,120]
[392636077,1761766454148,-1805.39368466,0.000319,120]
[392636078,1761766454175,-223.3749111,0.000319,120]
[392636079,1761766454202,-327.63963972,0.000319,120]
[392636080,1761766454229,-500.0,0.00032058,7]
[392636081,1761766454257,-153.0,0.00032428,2]
[392636082,1761766454285,-153.0,0.00032429,2]
[392636083,1761766454312,-153.0,0.00032433,2]
[392636084,1761766454339,-153.0,0.00032434,2]
[392636085,1761766454370,-153.0,0.00032438,2]
[392636086,1761766454401,-153.0,0.00032439,2]
[392636087,1761766454430,-452.19352904,0.00032876,120]
[392636088,1761766454528,-1546.80647096,0.00032876,120]
[392636089,1761766454653,-1548.51455022,0.000329,120]
[392636090,1761766454682,-1805.39368466,0.000329,120]
[392636091,1761766454887,-223.3749111,0.000329,120]
[392636092,1761766454913,-327.63963972,0.000329,120]
[392636093,1761766454940,-412.0,0.00033483,2]
[392636094,1761766454968,-1097.12,0.00033568,10]
[392636095,1761766457405,-3840.80439177,0.00033577,2]
[392636096,1761766457419,-10000.01,0.00033577,2]
[392636097,1761766457453,-10000.01,0.00033577,2]
[392636098,1761766457478,-10000.01,0.00033577,2]
[392636099,1761766457629,-10000.01,0.00033577,2]
[392636100,1761766457762,-10000.01,0.00033577,2]
[392636101,1761766457924,-10000.01,0.00033577,2]
[392636102,1761766458055,-10000.01,0.00033577,2]
[392636103,1761766458211,-10000.01,0.00033577,2]
[392636104,1761766458399,-10000.01,0.00033577,2]
[392636105,1761766458545,-10000.01,0.00033577,2]
[392636106,1761766462825,-167.75136394,0.00025952,2]
[392636107,1761766462858,-9664.50727212,0.00033577,2]
[392636108,1761766462995,-914.27,0.00033568,10]
[392636109,1761766463059,-8171.47,0.00033577,2]
[392636110,1761766463133,-10000.01,0.00033577,2]
[392636111,1761766463285,-10000.01,0.00033577,2]
[392636112,1761766463446,-10000.01,0.00033577,2]
[392636113,1761766463587,-10000.01,0.00033577,2]
[392636114,1761766463727,-10000.01,0.00033577,2]
[392636119,1761766554895,885.275897,0.00013699,2]
[392636120,1761766596785,-885.275897,0.00020187,2]
[392636121,1761766596814,-187.98206485,0.00022204,2]
[392636122,1761766596842,-151.0,0.00024045,2]
[392636123,1761766596872,-221.81883652,0.00024204,2]
[392636124,1761766596900,-151.0,0.0002501,2]
[392636125,1761766596929,-151.0,0.00025976,3]
[392636126,1761766596958,-255.65560819,0.00026205,2]
[392636127,1761766597139,-885.275897,0.00026676,2]
[392636128,1761766597167,-151.0,0.00026942,4]
[392636129,1761766597194,-412.0,0.00027483,2]
[392636130,1761766597221,-151.0,0.00027908,4]
[392636131,1761766597252,-289.49237987,0.00028205,2]
[392636132,1761766597280,-151.0,0.00028873,5]
[392636133,1761766597306,-380.0,0.00029053,2]
[392636134,1761766597334,-151.0,0.00029839,5]
[392636135,1761766597362,-167.75136393,0.0003,2]
[392636136,1761766597389,-15.50590528,0.00030073,5]
[392636137,1761766597651,-484.49409472,0.00030073,5]
[392636138,1761766597678,-446.55072751,0.00030073,5]
[392636139,1761766597706,-300.0,0.00030099,2]
[392636140,1761766597735,-300.0,0.000301,2]
[392636141,1761766597770,-300.0,0.000301,2]
[392636142,1761766597799,-300.0,0.000301,2]
[392636143,1761766598203,-5437.92035554,0.000301,2]
[392636144,1761766598218,-10000.01,0.000301,2]
[392636145,1761766598234,-10000.01,0.000301,2]
[392636146,1761766598261,-10000.01,0.000301,2]
[392636147,1761766598277,-10000.01,0.000301,2]
[392636148,1761766598294,-4562.03964446,0.000301,2]
[392636149,1761766598305,-300.0,0.000301,2]
[392636150,1761766598316,-300.0,0.000301,2]
[392636151,1761766598327,-500.0,0.00030137,120]
[392636152,1761766598338,-4337.97035554,0.00030137,120]
[392636153,1761766598404,-662.02964446,0.00030137,120]
[392636154,1761766598440,-323.32915154,0.00030204,2]
[392636155,1761766598473,-267.825,0.00030483,2]
[392636156,1761766598512,-151.0,0.00030805,6]
[392636157,1761766598541,-151.0,0.00031771,6]
[392636158,1761766598570,-357.16592321,0.00032204,2]
[392636159,1761766598599,-153.0,0.00032417,2]
[392636160,1761766598630,-153.0,0.00032418,2]
[392636161,1761766598660,-153.0,0.00032422,2]
[392636162,1761766598691,-153.0,0.00032423,2]
[392636163,1761766598720,-151.0,0.00032736,7]
[392636164,1761766598759,-885.275897,0.00033165,2]
[392636165,1761766598791,-974.7229943,0.00033414,2]
[392636166,1761766598823,-167.42277898,0.00033568,10]
[392636167,1761766598862,-594.46722102,0.00033568,10]
[392636168,1761766598896,-500.0,0.00033576,7]
[392636169,1761766598929,-500.0,0.00033576,7]
[392636170,1761766598961,-500.0,0.00033576,7]
[392636171,1761766599004,-546.32888041,0.00033576,7]
[392636172,1761766599042,-500.0,0.00033576,7]
[392636173,1761766599076,-536.08948161,0.00033576,7]
[392636174,1761766599111,-500.0,0.00033576,7]
[392636175,1761766599143,-500.0,0.00033576,7]
[392636176,1761766599176,-146.23883392,0.00033576,7]
[392636177,1761766599280,-353.76116608,0.00033576,7]
[392636178,1761766599311,-492.0126711,0.00033576,2]
[392636179,1761766599340,-499.79391945,0.00033576,7]
[392636180,1761766599371,-500.0,0.00033576,7]
[392636181,1761766599406,-500.0,0.00033576,7]
[392636182,1761766599437,-500.0,0.00033576,7]
[392636183,1761766599470,-500.0,0.00033576,7]
[392636184,1761766599506,-500.0,0.00033576,7]
[392636185,1761766599537,-500.0,0.00033576,7]
[392636186,1761766599569,-500.0,0.00033576,7]
[392636187,1761766599680,-374.81433758,0.00033576,7]
[392636188,1761766599710,-500.0,0.00033576,7]
[392636189,1761766599739,-436.99225554,0.00033576,7]
[392636190,1761766600411,-374.81433758,0.00033577,2]
[392636191,1761766600427,-500.0,0.00033577,2]
[392636192,1761766600441,-436.99225554,0.00033577,2]
[392636193,1761766600454,-7376.39681376,0.00033577,2]
[392636194,1761766600475,-10000.01,0.00033577,2]
[392636195,1761766602631,-10000.01,0.00033577,2]
[392636196,1761766602750,-10000.01,0.00033577,2]
[392636197,1761766605644,-500.0,0.00020525,2]
[392636198,1761766605679,-9000.01,0.00033577,2]
[392636199,1761766605860,-10000.01,0.00033577,2]
[392636200,1761766606022,-10000.01,0.00033577,2]
[392636201,1761766606148,-10000.01,0.00033577,2]
[392636202,1761766606352,-10000.01,0.00033577,2]
[392636203,1761766606484,-10000.01,0.00033577,2]
[392636204,1761766606723,-10000.01,0.00033577,2]
[392636205,1761766606791,-10000.01,0.00033577,2]
[392636206,1761766606944,-10000.01,0.00033577,2]
[392636207,1761766607092,-10000.01,0.00033577,2]
[392636208,1761766738597,-500.0,0.00020525,2]
[392636209,1761766738804,-500.0,0.00030099,2]
[392636210,1761766738832,-1200.0,0.00030136,2]
[392636211,1761766738860,-300.0,0.00030136,2]
[392636212,1761766738888,-0.01,0.00030137,120]
[392636213,1761766738963,-4999.99,0.00030137,120]
[392636214,1761766739019,-500.0,0.00030137,120]
[392636215,1761766739028,-3407.26453094,0.00030137,120]
[392636216,1761766739038,-1083.96018515,0.00031,120]
[392636217,1761766739048,-8.76528391,0.00031,120]
[392636218,1761766739079,-713.39218995,0.00031,120]
[392636219,1761766739107,-223.37491111,0.00031,120]
[392636220,1761766739134,-163.81981986,0.00031,120]
[392636221,1761766739162,-1083.96018515,0.000319,120]
[392636222,1761766739192,-722.15747386,0.000319,120]
[392636223,1761766739220,-223.37491111,0.000319,120]
[392636224,1761766739248,-163.81981986,0.000319,120]
[392636225,1761766739275,-500.0,0.00032058,7]
[392636226,1761766739302,-160.0,0.00032656,3]
[392636227,1761766739330,-1008.25119305,0.000329,120]
[392636228,1761766739428,-75.7089921,0.000329,120]
[392636229,1761766739456,-722.15747386,0.000329,120]
[392636230,1761766739482,-163.81981986,0.000329,120]
[392636231,1761766739509,-167.75136393,0.00033487,2]
[392636232,1761766739537,-306.19,0.00033568,10]
[392636233,1761766739572,-583.88,0.00033568,10]
[392636234,1761766739600,-1999.0,0.00033577,120]
[392636235,1761766739994,-101.13101178,0.00033577,2]
[392636236,1761766740011,-1962.9947005,0.00033577,2]
[392636237,1761766740029,-10000.01,0.00033577,2]
[392636238,1761766740047,-10000.01,0.00033577,2]
[392636239,1761766741423,-486.56,0.00033568,10]
[392636240,1761766741456,-9026.89,0.00033577,2]
[392636241,1761766741534,-10000.01,0.00033577,2]
[392636245,1761766880405,-155.27318557,0.0002589,2]
[392636246,1761766880432,-412.0,0.00027483,2]
[392636247,1761766880460,-183.22235897,0.0002789,2]
[392636248,1761766880494,-211.17153237,0.0002989,2]
[392636249,1761766880522,-182.0,0.00030136,2]
[392636250,1761766880548,-300.0,0.00030136,2]
[392636251,1761766880576,-300.0,0.00030136,2]
[392636252,1761766880605,-300.0,0.00030136,2]
[392636253,1761766880637,-1200.0,0.00030136,2]
[392636254,1761766880868,-5000.0,0.00030137,120]
[392636255,1761766880954,-5000.0,0.00030137,120]
[392636256,1761766881025,-3512.68584618,0.00030137,120]
[392636257,1761766881038,-0.01,0.00030137,120]
[392636258,1761766881070,-1487.30415382,0.00030137,120]
[392636259,1761766881098,-2069.579058,0.00031768,2]
[392636260,1761766881125,-239.12070577,0.0003189,2]
[392636261,1761766881153,-500.0,0.00032058,7]
[392636262,1761766881183,-156.30891422,0.00033267,2]
[392636263,1761766881285,-1095.38433638,0.00033267,2]
[392636264,1761766881313,-1626.66071165,0.00033478,2]
[392636265,1761766881343,-405.47,0.00033568,10]
[392636266,1761766881372,-337.89,0.00033568,10]
[392636267,1761766881400,-606.52549046,0.00033575,7]
[392636268,1761766881430,-500.0,0.00033575,7]
[392636269,1761766881460,-356.14892302,0.00033575,7]
[392636270,1761766881629,-143.85107698,0.00033575,7]
[392636271,1761766881638,-113.6432594,0.00033575,2]
[392636272,1761766881653,-386.3567406,0.00033575,2]
[392636273,1761766881662,-113.6432594,0.00033575,7]
[392636274,1761766881676,-305.53781732,0.00033575,7]
[392636275,1761766881685,-194.46218268,0.00033575,7]
[392636281,1761767103139,593.11007864,0.000147,2]
[392636287,1761767233128,-154.46508499,0.0002589,2]
[392636288,1761767233150,-376.04087516,0.00027483,2]
[392636289,1761767238086,-35.95912484,0.00027483,2]
[392636290,1761767238107,-182.26880029,0.0002789,2]
[392636291,1761767238128,-19.41579132,0.00028219,2]
[392636292,1761767246215,-175.35936968,0.00028219,2]
[392636293,1761767246239,-210.07251559,0.0002989,2]
[392636294,1761767246265,-0.78771945,0.000301,2]
[392636295,1761767251123,-299.21228055,0.000301,2]
[392636296,1761767251144,-267.23902154,0.000301,2]
[392636359,1761767432385,-5000.0,0.00024456,2]
[392636360,1761767432394,-5000.0,0.00024703,2]
[392636361,1761767432405,-5000.0,0.00024953,2]
[392636362,1761767432415,-150.0,0.00027483,2]
[392636363,1761767432424,-32.76097846,0.000301,2]
[392636364,1761767432433,-300.0,0.000301,2]
[392636365,1761767432443,-300.0,0.000301,2]
[392636366,1761767432452,-150.0,0.00030483,2]
[392636367,1761767432462,-288.86298955,0.00031,120]
[392636368,1761767432471,-1517.54425922,0.00031,120]
[392636369,1761767432481,-189.21183956,0.00031,120]
[392636370,1761767432490,-237.87623089,0.0003189,2]
[392636371,1761767432499,-288.86298955,0.000319,120]
[392636372,1761767432509,-1517.54425922,0.000319,120]
[392636373,1761767432518,-500.0,0.00032058,7]
[392636374,1761767432527,-5554.0432111,0.00032499,2]
[392636375,1761767432536,-596.5975233,0.00032898,30]
[392636376,1761767432545,-165.631453,0.00032898,30]
[392636377,1761767432554,-299.2154913,0.00032898,30]
[392636378,1761767432564,-1179.4640716,0.00032898,30]
[392636379,1761767432573,-288.86298955,0.000329,120]
[392636380,1761767432582,-1517.54425922,0.000329,120]
[392636381,1761767432591,-13971.16447306,0.00033374,10]
[392636382,1761767432601,-403.72361849,0.00033411,2]
[392636383,1761767432609,-281.58,0.00033568,10]
[392636384,1761767432618,-234.65,0.00033568,10]
[392636385,1761767432628,-6257.16568431,0.00033574,2]
[392636386,1761767432637,-417.07980261,0.00033575,7]
[392636387,1761767432646,-500.0,0.00033575,7]
[392636388,1761767432657,-481.48352664,0.00033575,7]
[392636389,1761767432666,-304.76374741,0.00033575,7]
[392636390,1761767432675,-500.0,0.00033575,7]
[392636391,1761767432684,-224.2688686,0.00033575,7]
[392636392,1761767432694,-273.181,0.00033576,36]
[392636393,1761767432703,-305.89457888,0.00033576,7]
[392636394,1761767432712,-693.47401585,0.00033576,7]
[392636395,1761767432721,-693.47401585,0.00033576,7]
[392636396,1761767432732,-693.47401585,0.00033576,7]
[392636397,1761767432743,-693.47401585,0.00033576,7]
[392636398,1761767432752,-693.47401585,0.00033576,7]
[392636399,1761767432761,-693.47401585,0.00033576,7]
[392636400,1761767432770,-693.47401585,0.00033576,7]
[392636401,1761767432780,-693.47401585,0.00033576,7]
[392636402,1761767432789,-693.47401585,0.00033576,7]
[392636403,1761767432798,-693.47401585,0.00033576,7]
[392636404,1761767432807,-693.47401585,0.00033576,7]
[392636405,1761767432817,-693.47401585,0.00033576,7]
[392636406,1761767432826,-693.47401585,0.00033576,7]
[392636407,1761767432836,-693.47401585,0.00033576,7]
[392636408,1761767432846,-693.47401585,0.00033576,7]
[392636409,1761767432856,-693.47401585,0.00033576,7]
[392636410,1761767432866,-693.47401585,0.00033576,7]
[392636411,1761767432876,-748.95193713,0.00033576,7]
[392636412,1761767432886,-748.95193713,0.00033576,7]
[392636413,1761767432896,-748.95193713,0.00033576,7]
[392636414,1761767432907,-748.95193713,0.00033576,7]
[392636415,1761767432917,-748.95193713,0.00033576,7]
[392636416,1761767432927,-748.95193713,0.00033576,7]
[392636417,1761767432936,-748.95193713,0.00033576,7]
[392636418,1761767432946,-748.95193713,0.00033576,7]
[392636419,1761767432955,-1999.0,0.00033577,120]
[392636420,1761767432965,-395438.317468,0.00033577,2]
[392636421,1761767432975,-5000.0,0.00033579,3]
[392636422,1761767432984,-370000.0,0.00033587,2]
[392636423,1761767432994,-403.72361849,0.00033647,120]
[392636424,1761767433004,-151.0,0.00033654,2]
[392636425,1761767433014,-151.0,0.00033654,2]
[392636426,1761767433023,-151.0,0.00033654,2]
[392636427,1761767433038,-151.0,0.00033654,2]
[392636428,1761767433047,-151.0,0.00033654,2]
[392636429,1761767433057,-151.0,0.00033654,2]
[392636430,1761767433066,-151.0,0.00033654,2]
[392636431,1761767433074,-151.0,0.00033654,2]
[392636432,1761767433084,-151.0,0.00033654,2]
[392636433,1761767433094,-191.87295522,0.00033654,2]
[392636434,1761767433103,-151.0,0.00033654,2]
[392636435,1761767433113,-151.0,0.00033654,2]
[392636436,1761767433123,-151.0,0.00033654,2]
[392636437,1761767433133,-151.0,0.00033654,2]
[392636438,1761767433142,-151.0,0.00033654,2]
[392636439,1761767433156,-151.0,0.00033654,2]
[392636440,1761767433166,-151.0,0.00033654,2]
[392636441,1761767433176,-151.0,0.00033654,2]
[392636442,1761767433186,-151.0,0.00033654,2]
[392636443,1761767433196,-151.0,0.00033654,2]
[392636444,1761767433205,-151.0,0.00033654,2]
[392636445,1761767433215,-151.0,0.00033654,2]
[392636446,1761767433224,-151.0,0.00033654,2]
[392636447,1761767433234,-151.0,0.00033654,2]
[392636448,1761767433245,-151.0,0.00033654,2]
[392636449,1761767433254,-500.0,0.00033673,5]
[392636450,1761767433263,-500.0,0.00033673,5]
[392636451,1761767433273,-9248.37385683,0.00033674,20]
[392636452,1761767433283,-5499.89820148,0.00033674,7]
[392636453,1761767433294,-91578.74012212,0.00033674,2]
[392636454,1761767433303,-300.0,0.00033674,2]
[392636455,1761767433313,-22739.61518445,0.00033674,2]
[392636456,1761767433323,-3896.54847147,0.00033674,2]
[392636457,1761767433332,-812.57696061,0.00033674,2]
[392636458,1761767433342,-259.11762759,0.00033674,2]
[392636459,1761767433351,-241.19853147,0.00033674,10]
[392636460,1761767433362,-2099.77870132,0.00033674,2]
[392636461,1761767433371,-328.16930439,0.00033674,2]
[392636462,1761767433381,-292.88327335,0.00033674,2]
[392636463,1761767433390,-195.57214784,0.00033674,12]
[392636464,1761767433401,-51894.3294723,0.00033674,2]
[392636465,1761767433411,-639.50599167,0.00033674,2]
[392636466,1761767433421,-1366.68063789,0.00033674,2]
[392636467,1761767433430,-4458.35336137,0.00033674,8]
[392636468,1761767433440,-157.17649105,0.00033674,2]
[392636469,1761767433450,-705.04726864,0.00033674,2]
[392636470,1761767433459,-21645.21046364,0.00033674,2]
[392636471,1761767433469,-6318.16706567,0.00033674,2]
[392636472,1761767433479,-1099.21352467,0.00033674,10]
[392636473,1761767433488,-158.17936084,0.00033674,2]
[392636474,1761767433498,-1723.32589967,0.00033674,2]
[392636475,1761767433508,-7510.05698695,0.00033674,2]
[392636476,1761767433518,-1988.59999899,0.00033674,7]
[392636477,1761767433528,-2083.95247369,0.00033674,2]
[392636478,1761767433538,-39389.83243294,0.00033674,2]
[392636479,1761767433548,-1500.0,0.00033674,3]
[392636480,1761767433559,-200.0,0.00033674,10]
[392636481,1761767433569,-509.46899535,0.00033674,2]
[392636482,1761767433578,-10626.54217283,0.00033674,7]
[392636483,1761767433588,-179.96427436,0.00033674,2]
[392636484,1761767433598,-469.5899819,0.00033674,2]
[392636485,1761767433610,-498.0,0.00033674,7]
[392636486,1761767433620,-30566.72556359,0.00033674,2]
[392636487,1761767433630,-26086.97246651,0.00033674,12]
[392636488,1761767433639,-189.83785875,0.00033674,2]
[392636489,1761767433651,-1199.23792229,0.00033674,2]
[392636490,1761767433660,-1401.86533242,0.00033674,2]
[392636491,1761767433670,-5919.36609989,0.00033674,2]
[392636492,1761767433679,-10723.95832659,0.00033674,2]
[392636493,1761767433689,-653.49272569,0.00033674,2]
[392636494,1761767433698,-203.68811518,0.00033674,2]
[392636495,1761767433708,-2920.0,0.00033674,2]
[392636496,1761767433718,-154.80701407,0.00033674,7]
[392636497,1761767433727,-1447.77098071,0.00033674,2]
[392636498,1761767433740,-386.20957062,0.00033674,2]
[392636499,1761767433752,-202.05917236,0.00033674,2]
[392636500,1761767433763,-803.16993707,0.00033674,3]
[392636501,1761767433774,-3159.48609813,0.00033674,2]
[392636502,1761767433783,-365.92217046,0.00033674,2]
[392636503,1761767433794,-167.15982752,0.00033674,2]
[392636504,1761767433805,-100649.78733931,0.00033674,2]
[392636505,1761767433816,-150.87277067,0.00033674,2]
[392636506,1761767433826,-259.45138265,0.00033674,2]
[392636507,1761767433836,-177.0344973,0.00033674,7]
[392636508,1761767433847,-3780.83298129,0.00033674,2]
[392636509,1761767433858,-158.0,0.00033674,10]
[392636510,1761767433869,-339.29846244,0.00033674,5]
[392636511,1761767433880,-2000.59641902,0.00033674,2]
[392636512,1761767433891,-2965.02526737,0.00033674,2]
[392636513,1761767433904,-58500.0,0.00033674,2]
[392636514,1761767433915,-500.0,0.00033674,120]
[392636515,1761767433927,-500.0,0.00033674,120]
[392636516,1761767433938,-298.86,0.00033674,120]
[392636517,1761767433949,-500.0,0.00033674,120]
[392636518,1761767433959,-500.0,0.00033674,120]
[392636519,1761767433970,-500.0,0.00033674,120]
[392636520,1761767433981,-500.0,0.00033674,120]
[392636521,1761767433992,-500.0,0.00033674,120]
[392636522,1761767434003,-500.0,0.00033674,120]
[392636523,1761767434015,-500.0,0.00033674,120]
[392636524,1761767434025,-500.0,0.00033674,120]
[392636525,1761767434035,-500.0,0.00033674,120]
[392636526,1761767434045,-500.0,0.00033674,120]
[392636527,1761767434056,-500.0,0.00033674,120]
[392636528,1761767434066,-500.0,0.00033674,120]
[392636529,1761767434077,-540.77,0.00033674,120]
[392636530,1761767434087,-500.0,0.00033674,2]
[392636531,1761767434098,-501.84223589,0.00033674,2]
[392636532,1761767434109,-501.54012183,0.00033674,2]
[392636533,1761767434119,-502.05405771,0.00033674,2]
[392636534,1761767434130,-500.0,0.00033674,2]
[392636535,1761767434141,-500.0,0.00033674,2]
[392636536,1761767434151,-500.0,0.00033674,2]
[392636537,1761767434161,-500.0,0.00033674,120]
[392636538,1761767434171,-486.58,0.00033674,120]
[392636539,1761767434180,-537.31,0.00033674,2]
[392636540,1761767434190,-302.69351722,0.00033674,2]
[392636541,1761767434200,-501.4439667,0.00033674,2]
[392636542,1761767434210,-500.0,0.00033674,2]
[392636543,1761767434220,-501.86408478,0.00033674,2]
[392636544,1761767434230,-591.6481595,0.00033674,2]
[392636545,1761767434240,-500.0,0.00033674,2]
[392636546,1761767434250,-400.46,0.00033674,120]
[392636547,1761767434260,-500.0,0.00033674,2]
[392636548,1761767434270,-500.07,0.00033674,2]
[392636549,1761767434280,-500.0,0.00033674,2]
[392636550,1761767434291,-500.0,0.00033674,2]
[392636551,1761767434301,-480.79,0.00033674,120]